[Event "FISCA IM Round Robin 2022"]
[Site "Cap Aurora"]
[Date "2022.06.23"]
[Round "2.5"]
[White "Manolache, Marius"]
[Black "Ciolacu, Alessia-Mihaela"]
[Result "1-0"]
[ECO "D36"]
[WhiteElo "2481"]
[BlackElo "2198"]
[Annotator "TA"]
[PlyCount "71"]
[EventDate "2022.06.22"]
[EventType "tourn"]
[EventCountry "ROU"]
[SourceTitle "playchess.com"]
[Source "ChessBase"]
[SourceQuality "1"]
[TimeControl "40/5400+30:900+30"]

{[%evp 12,71,27,18,32,-10,2,7,6,6,31,14,22,22,26,-62,22,7,33,20,51,44,59,35,65,28,28,31,85,97,82,88,93,91,107,107,124,85,161,42,174,171,301,285,319,287,276,266,535,461,469,475,416,395,438,425,593,581,636,450,1267,1164]} 1. d4 {[%emt 0:00:08]} Nf6 {[%emt 0:00:06]} 2. c4 {[%emt 0:00:14]} e6 {[%emt 0:00:05]} 3. Nc3 {[%emt 0:00:06]} d5 {[%emt 0:00:09]} 4. cxd5 {[%emt 0:00:48]} exd5 {[%emt 0:00:05]} 5. Bg5 {[%emt 0:00:10]} c6 {[%emt 0:00:16]} 6. Qc2 {[%emt 0:01:49]} Be7 {[%emt 0:01:11] 6...h6 is the modern continuation.} 7. e3 {[%emt 0:01:16]} Nbd7 {[%emt 0:00:27] D36: Queen's Gambit Declined: Exchange Variation: Main line (5 Bg5 c6 6 Qc2).} 8. Nge2 {[%emt 0:03:57]} Nh5 {[%emt 0:03:40]} 9. Bxe7 {[%emt 0:01:40]} Qxe7 {[%emt 0:00:02] [#] The position is equal.} 10. h3 $146 {[%emt 0:04:55]} ({Predecessor:} 10. Ng3 Nxg3 11. hxg3 Nf6 12. Bd3 h6 13. O-O O-O 14. Rfc1 {½-½ (41) Muha,M (1617)-Bogdanic,A (1642) Krapinske Toplice 2015}) 10... g6 {[%emt 0:02:40]} 11. g4 {[%emt 0:02:42]} Ng7 {[%emt 0:00:49]} 12. O-O-O {[%emt 0:09:14]} Nb6 {[%emt 0:02:01]} 13. Kb1 {[%emt 0:04:55]} (13. Nf4 $11) 13... Be6 {[%emt 0:06:22]} (13... h5 $1 $15 14. Bg2 hxg4 15. hxg4 Rxh1 16. Rxh1 Bxg4) 14. Nf4 $11 {[%emt 0:01:55]} O-O-O {[%emt 0:02:49]} 15. a4 {[%emt 0:00:37][%cal Ba2a4,Ba4a5,Ba5a6][%mdl 32]} Kb8 {[%emt 0:01:53]} 16. a5 $36 {[%emt 0:00:31][%mdl 2048] White has good play.} Nd7 {[%emt 0:19:59]} 17. a6 {[%emt 0:07:55] Strongly threatening axb7.} b6 {[%emt 0:00:19]} 18. Rc1 {[%emt 0:09:11][%cal Oc3d5] Ncxd5! is the strong threat. White is more active.} Rc8 {[%emt 0:03:00]} 19. Bg2 {[%emt 0:01:44] And now e4 would win.} h5 {[%emt 0:05:10]} ({Black should play} 19... Nf6 $14) 20. e4 $16 {[%emt 0:14:39][%cal Re4d5]} hxg4 {[%emt 0:15:08]} 21. hxg4 {[%emt 0:00:07]} Rxh1 {[%emt 0:03:31]} 22. Bxh1 {[%emt 0:00:05][%cal Rc3d5]} (22. Rxh1 $6 Bxg4 23. Qd2 Qg5 $15) 22... Nf6 {[%emt 0:15:27]} 23. Nxe6 {[%emt 0:19:24]} Qxe6 {[%emt 0:00:27]} 24. f3 {[%emt 0:04:26][%cal Bf2f3,Bf3e4][%mdl 32]} dxe4 {[%emt 0:03:48]} (24... Nge8 $16) 25. g5 {[%emt 0:02:29]} (25. Nxe4 Nd5 $11) ({White must play} 25. Qh2+ $1 $18 Ka8 26. g5) 25... Nd5 {[%emt 0:00:51] [#] Loses the game.} ({Black should try} 25... Nfe8 $1 $14) 26. Qh2+ $1 $18 {[%emt 0:01:31]} (26. fxe4 $6 Nc7 $16) 26... Ka8 {[%emt 0:00:37]} (26... Nc7 $142) 27. fxe4 {[%emt 0:01:15]} Nb4 {[%emt 0:03:14] [#]} 28. d5 $1 {[%emt 0:00:09]} Qd7 {[%emt 0:01:32]} 29. Rd1 {[%emt 0:00:51] Hoping for dxc6.} Qg4 $2 {[%emt 0:05:37]} (29... Rd8 {was worth a try.} 30. Bf3 Qe7 31. dxc6 Rxd1+ 32. Bxd1 Nxa6) 30. Qe5 {[%emt 0:04:26]} Ne8 {[%emt 0:00:17]} 31. Qe7 {[%emt 0:00:25][%csl Ga6,LRb4,LRf7][%cal Re7b7]} Nxa6 {[%emt 0:00:49]} 32. d6 {[%emt 0:00:11] Against Nec7} (32. dxc6 Nec7 33. Rd8 (33. Qxf7 Qxg5 34. Nd5 Qe5 $18) 33... Kb8 $18) 32... Nxd6 {[%emt 0:03:23]} 33. Qxd6 {[%emt 0:00:21] White is clearly winning.} ({Less strong is} 33. Rxd6 Rc7 34. Qd8+ Rc8 $18) 33... Qxg5 {[%emt 0:00:02]} 34. e5 {[%emt 0:00:25]} Nb8 {[%emt 0:00:18]} 35. Be4 {[%emt 0:00:55] aiming for Rf1.} Qh4 {[%emt 0:00:31]} (35... Qg4 $142 36. Rf1 Qd7) 36. Rf1 {[%emt 0:00:38] Weighted Error Value: White=0.23 (precise) /Black=0.48} 1-0

[Event "FISCA IM Round Robin 2022"]
[Site "Cap Aurora"]
[Date "2022.06.24"]
[Round "4.1"]
[White "Cosma, Ioan"]
[Black "Dev, Shah"]
[Result "1-0"]
[ECO "D24"]
[WhiteElo "2394"]
[BlackElo "2292"]
[Annotator "TA"]
[PlyCount "93"]
[EventDate "2022.06.22"]
[EventType "tourn"]
[EventCountry "ROU"]
[SourceTitle "playchess.com"]
[Source "ChessBase"]
[SourceQuality "1"]
[TimeControl "40/5400+30:900+30"]

{[%evp 14,93,0,0,0,0,0,0,0,0,0,0,0,14,51,7,12,0,0,0,0,0,0,0,19,0,0,0,20,31,84,62,191,180,192,177,164,176,170,115,112,107,85,117,90,93,106,94,102,102,102,114,101,100,131,124,235,213,260,257,260,154,150,152,146,149,187,188,162,158,317,155,243,245,237,152,779,706,736,729,635,622]} 1. d4 {[%emt 1:31:00]} d5 {[%emt 0:02:52]} 2. c4 {[%emt 0:00:00]} dxc4 {[%emt 0:00:07]} 3. Nf3 {[%emt 0:00:00]} Nf6 {[%emt 0:00:08]} 4. Nc3 {[%emt 0:00:00]} a6 {[%emt 0:01:09]} 5. e4 {[%emt 0:00:00][%cal Be2e4,Be4e5][%mdl 32]} b5 {[%emt 0:00:05]} 6. e5 {[%emt 0:00:00]} Nd5 {[%emt 0:00:07]} 7. a4 {[%emt 0:00:00]} e6 {[%emt 0:00:22]} 8. axb5 {[%emt 0:00:00]} Bb4 {[%emt 0:00:06] is the new trend. D24: Queen's Gambit Accepted: 3 Nf3 Nf6 4 Nc3.} 9. Bd2 {[%emt 0:00:00]} (9. Bxc4 Nxc3 10. bxc3 Bxc3+ 11. Bd2 Bxa1 12. Qxa1 Bb7 $17) 9... Nb6 {[%emt 0:00:07]} 10. bxa6 {[%emt 0:00:00]} Nxa6 {[%emt 0:06:43] The position is equal.} 11. Be2 {[%emt 0:00:00]} Bb7 {[%emt 0:01:23]} 12. O-O {[%emt 0:00:00]} O-O {[%emt 0:00:50] [#]} 13. Be3 $146 {[%emt 0:00:00]} ({Predecessor:} 13. Na4 c5 14. dxc5 Bxc5 15. Nxc5 Nxc5 16. Be3 Nd3 17. Rxa8 Bxa8 18. b3 Bxf3 19. Bxf3 {½-½ (45) Mamedyarov,S (2762)-Kasimdzhanov,R (2691) Tashkent 2016}) 13... Qe7 {[%emt 0:10:22]} 14. Bg5 {[%emt 0:00:00]} Qd7 {[%emt 0:01:43]} 15. Qc1 {[%emt 0:00:00]} Be7 {[%emt 0:04:17]} 16. Qf4 {[%emt 0:00:00]} Nb4 {[%emt 0:04:26]} 17. Ne4 {[%emt 0:00:00][%cal Oe4f6] Black must now prevent Nf6+!} Bxe4 {[%emt 0:06:55]} 18. Qxe4 {[%emt 0:00:00]} N4d5 {[%emt 0:04:20]} 19. h4 {[%emt 0:00:00]} h6 {[%emt 0:03:33] Hoping for ...Rxa1.} 20. Bd2 {[%emt 0:00:00]} Qb5 {[%emt 0:06:19]} 21. Rab1 {[%emt 0:00:00][%cal Ob2b3] b3! is the strong threat.} Qb3 {[%emt 0:05:36]} (21... Bb4 $14) 22. Ne1 {[%emt 0:00:00] Strongly threatening Bd1.} Rae8 {[%emt 0:03:17]} (22... Nd7 $14) 23. Bd1 $1 $18 {[%emt 0:00:00][%cal Be2d1,Bd1c2,Bc2f5][%mdl 32]} Qb5 {[%emt 0:00:20]} 24. Bc2 {[%emt 0:00:00][%csl Gc2][%cal Re4h7]} f5 {[%emt 0:00:05]} 25. exf6 $1 {[%emt 0:00:00]} Nxf6 {[%emt 0:00:07]} 26. Qxe6+ {[%emt 0:00:00]} (26. Qg6 $1 $18) 26... Kh8 $16 {[%emt 0:00:01] Threatens to win with ...Bb4.} 27. Qf5 {[%emt 0:00:00]} Qxf5 {[%emt 0:04:00]} 28. Bxf5 {[%emt 0:00:00]} c5 {[%emt 0:06:51]} 29. Bg6 $36 {[%emt 0:00:00][%mdl 2048] White is in control.} Rd8 {[%emt 0:00:40]} (29... cxd4 $2 30. Bxe8 Rxe8 31. Nf3 $18) 30. Ba5 $1 {[%emt 0:00:00]} Nfd5 {[%emt 0:02:22]} 31. dxc5 {[%emt 0:00:00]} Bxc5 {[%emt 0:00:19]} 32. b4 {[%emt 0:00:00][%cal Bb2b4,Bb4b5][%mdl 32]} Be7 {[%emt 0:07:29]} 33. Nf3 {[%emt 0:00:00]} Rd6 {[%emt 0:01:46]} 34. h5 {[%emt 0:00:00]} Nf4 {[%emt 0:04:15]} (34... Re6 $16) 35. Rfe1 {[%emt 0:02:42]} Bf6 {[%emt 0:02:34]} 36. b5 {[%emt 0:02:38] And now Bb4 would win.} Ra8 {[%emt 0:08:09]} 37. Bb4 {[%emt 0:03:49] A strong pair of Bishops.} ({Better is} 37. g3 $18 Nfd5 38. Ne5 $1 Bxe5 39. Rxe5) 37... Rdd8 {[%emt 0:00:24]} 38. Ne5 {[%emt 0:01:59]} Bxe5 {[%emt 0:00:49]} 39. Rxe5 {[%emt 0:00:07]} Nd3 {[%emt 0:00:42]} 40. Re6 {[%emt 0:02:48]} Nd5 {[%emt 0:01:17]} 41. Be1 {[%emt 0:17:57]} Rab8 {[%emt 0:18:00] [#]} (41... Nxe1 $16 42. Rexe1 (42. Rbxe1 Rab8 $18) 42... Rab8) 42. g3 {[%emt 0:01:05]} (42. Ba5 $1 $18 {[%cal Ra5d8] is the precise move to win.} N3f4 43. Rc6) 42... Nc7 {[%emt 0:00:50] [#]} (42... Nxe1 $16 43. Rexe1 (43. Rbxe1 Kg8 $16) 43... Kg8) 43. Rc6 $1 $18 {[%emt 0:01:01][%csl LRc4,LRc7]} Rxb5 {[%emt 0:01:13]} 44. Rd1 {[%emt 0:00:41]} Ne8 {[%emt 0:00:00]} (44... Nd5 $16 45. Rxc4 (45. Bxd3 cxd3 46. Rxd3 Re8 $16) 45... Nxe1) 45. Rxc4 {[%emt 0:00:21] White is clearly winning.} Rbd5 {[%emt 0:00:00]} 46. Rxd3 {[%emt 0:00:45]} Rxd3 {[%emt 0:00:07]} 47. Bxd3 {[%emt 0:00:03] Weighted Error Value: White=0.13 (very precise) /Black=0.24 (precise)} 1-0

[Event "FISCA IM Round Robin 2022"]
[Site "Cap Aurora"]
[Date "2022.06.24"]
[Round "4.2"]
[White "Srinath, Rao S.V."]
[Black "Cosman, Andreea-Marioara"]
[Result "1/2-1/2"]
[ECO "B86"]
[WhiteElo "2316"]
[BlackElo "2120"]
[Annotator "TA"]
[PlyCount "32"]
[EventDate "2022.06.22"]
[EventType "tourn"]
[EventCountry "ROU"]
[SourceTitle "playchess.com"]
[Source "ChessBase"]
[SourceQuality "1"]
[TimeControl "40/5400+30:900+30"]

{[%evp 18,32,22,0,0,0,0,0,0,0,0,0,0,0,0,0,25]} 1. e4 {[%emt 0:01:03]} c5 {[%emt 0:00:19]} 2. Nf3 {[%emt 0:00:09]} d6 {[%emt 0:00:10]} 3. d4 {[%emt 0:00:07]} cxd4 {[%emt 0:00:07]} 4. Nxd4 {[%emt 0:00:05]} Nf6 {[%emt 0:00:08]} 5. Nc3 {[%emt 0:00:04]} a6 {[%emt 0:00:06]} 6. Bc4 {[%emt 0:00:14]} e6 {[%emt 0:00:46]} 7. Bb3 {[%emt 0:00:05]} Nbd7 {[%emt 0:00:49]} 8. O-O {[%emt 0:00:07]} Nc5 {[%emt 0:00:18]} 9. f4 {[%emt 0:00:34]} Be7 {[%emt 0:01:30]} 10. e5 {[%emt 0:00:21] The position is equal.} dxe5 {[%emt 0:00:51] B86: Sicilian Scheveningen/Najdorf: 6 Bc4, without early ...b5.} 11. fxe5 {[%emt 0:00:05]} Nfd7 {[%emt 0:01:10]} 12. Qh5 {[%emt 0:00:35][%csl Gf1][%cal Rh5f7] [#]} Nf6 {[%emt 0:01:53]} 13. Qd1 {[%emt 0:01:05]} Nfd7 {[%emt 0:01:10]} 14. Qh5 {[%emt 0:00:52][%csl Gf1][%cal Rh5f7]} Nf6 {[%emt 0:00:47]} 15. Qd1 {[%emt 0:00:06]} Nfd7 {[%emt 0:00:07] [#]} 16. Qh5 $146 {[%emt 0:00:06][%csl Gf1][%cal Rh5f7] [#]} ({Predecessor:} 16. Qe2 O-O 17. Bf4 Qb6 18. Rad1 a5 19. Kh1 Nxb3 20. axb3 Nc5 21. Qh5 Bd7 22. Rf3 g6 23. Rg3 Be8 24. Bh6 f5 25. Bxf8 Bxf8 26. Nxf5 exf5 {1-0 (34) Golubev,M (2499)-Kovchan,A (2513) Kharkov 2006}) 16... Nf6 $1 {[%emt 0:00:11] An interesting draw.  Weighted Error Value: White=0.05 (flawless) /Black=0.00 (flawless)} 1/2-1/2

[Event "FISCA IM Round Robin 2022"]
[Site "Cap Aurora"]
[Date "2022.06.24"]
[Round "4.3"]
[White "Buzbuchi, Ionut"]
[Black "Antonica, Dragos-Andrei"]
[Result "1/2-1/2"]
[ECO "A07"]
[WhiteElo "2301"]
[BlackElo "2355"]
[Annotator "TA"]
[PlyCount "28"]
[EventDate "2022.06.22"]
[EventType "tourn"]
[EventCountry "ROU"]
[SourceTitle "playchess.com"]
[Source "ChessBase"]
[SourceQuality "1"]
[TimeControl "40/5400+30:900+30"]

{[%evp 15,28,0,0,0,13,12,22,7,10,2,39,43,43,37,41]} 1. Nf3 {[%emt 0:00:02]} d5 {[%emt 0:00:12]} 2. g3 {[%emt 0:00:08]} g6 {[%emt 0:00:23]} 3. Bg2 {[%emt 0:00:05]} Bg7 {[%emt 0:00:08]} 4. O-O {[%emt 0:00:05]} e5 {[%emt 0:00:38]} 5. d3 {[%emt 0:00:59]} Nc6 {[%emt 0:00:25]} 6. Nbd2 {[%emt 0:04:47]} Nge7 {[%emt 0:03:32]} 7. e4 {[%emt 0:02:37]} O-O {[%emt 0:02:53]} 8. c3 {[%emt 0:08:02]} a5 {[%emt 0:08:49]} 9. a4 {[%emt 0:04:24] A07: Réti Opening: New York and Capablanca Systems.} dxe4 {[%emt 0:08:19]} 10. dxe4 {[%emt 0:00:07]} h6 {[%emt 0:01:11] [#]} 11. Qc2 $146 {[%emt 0:13:21]} ({Predecessor:} 11. Qe2 b6 12. Nc4 Ba6 13. b3 Qc8 14. Ba3 Qe6 15. Rfd1 Rfd8 16. Bf1 Rxd1 17. Rxd1 {0-1 (60) Malenica,M (2202)-Golubovic,B (2411) Sibenik 2016}) 11... Be6 {[%emt 0:05:24]} 12. b3 {[%emt 0:04:55]} Qd7 {[%emt 0:07:20]} 13. Ba3 {[%emt 0:01:37]} Rfd8 {[%emt 0:02:16]} 14. Rad1 {[%emt 0:00:59]} Qe8 {[%emt 0:56:00] Weighted Error Value: White=0.06 (flawless) /Black=0.10 (very precise)} 1/2-1/2

[Event "FISCA IM Round Robin 2022"]
[Site "Cap Aurora"]
[Date "2022.06.24"]
[Round "4.4"]
[White "Manolache, Marius"]
[Black "Sanz Wawer, Daniel"]
[Result "1/2-1/2"]
[ECO "E51"]
[WhiteElo "2481"]
[BlackElo "2363"]
[Annotator "RC"]
[PlyCount "120"]
[EventDate "2022.06.22"]
[EventType "tourn"]
[EventCountry "ROU"]
[SourceTitle "playchess.com"]
[Source "ChessBase"]
[SourceQuality "1"]
[TimeControl "40/5400+30:900+30"]

1. d4 {[%emt 0:00:03]} Nf6 {[%emt 0:00:27]} 2. c4 {[%emt 0:00:38]} e6 {[%emt 0:00:07]} 3. Nc3 {[%emt 0:00:07]} Bb4 {[%emt 0:00:06]} 4. e3 {[%emt 0:00:09]} O-O {[%emt 0:00:08]} 5. Bd2 {[%emt 0:01:16]} d5 {[%emt 0:01:58]} 6. Nf3 {[%emt 0:02:55]} b6 {[%emt 0:04:19]} 7. cxd5 {[%emt 0:02:17]} exd5 {[%emt 0:00:18]} 8. Rc1 {[%emt 0:00:57]} Be7 {[%emt 0:09:22]} 9. Ne5 {[%emt 0:01:20]} Bb7 {[%emt 0:00:59]} 10. Bd3 {[%emt 0:00:33]} c5 {[%emt 0:03:39]} 11. O-O {[%emt 0:02:29]} Nbd7 {[%emt 0:09:48]} 12. f4 {[%emt 0:00:59]} cxd4 {[%emt 0:02:05]} 13. exd4 {[%emt 0:00:08]} Ne4 {[%emt 0:02:59]} 14. Be3 {[%emt 0:21:44]} Ndf6 {[%emt 0:08:01]} 15. Ne2 {[%emt 0:03:51]} Qd6 {[%emt 0:03:06]} 16. f5 {[%emt 0:08:29]} Rfc8 {[%emt 0:01:10]} 17. Qa4 {[%emt 0:03:02]} a6 {[%emt 0:08:47]} 18. g4 {[%emt 0:02:45]} h6 {[%emt 0:06:33]} 19. Qb3 {[%emt 0:06:09]} Qb4 {[%emt 0:04:24]} 20. Qxb4 {[%emt 0:03:30]} Bxb4 {[%emt 0:00:05]} 21. Rfd1 {[%emt 0:00:38]} Kf8 {[%emt 0:05:11]} 22. h4 {[%emt 0:05:19]} Ke7 {[%emt 0:02:58]} 23. Nf4 {[%emt 0:07:55]} Bd6 {[%emt 0:02:24]} 24. Be2 {[%emt 0:01:21]} Rxc1 {[%emt 0:09:00]} 25. Rxc1 {[%emt 0:00:06]} Rc8 {[%emt 0:00:50]} 26. Rxc8 {[%emt 0:00:37]} Bxc8 {[%emt 0:00:04]} 27. Kg2 {[%emt 0:03:26]} Bb7 {[%emt 0:00:39]} 28. Nfd3 {[%emt 0:02:05]} Nd7 {[%emt 0:02:54]} 29. Bf4 {[%emt 0:02:30]} Nb8 {[%emt 0:03:57]} 30. Kf3 {[%emt 0:03:20]} Bc8 {[%emt 0:04:17]} 31. Ke3 {[%emt 0:04:11]} h5 {[%emt 0:01:41]} 32. g5 {[%emt 0:01:47]} Bxf5 {[%emt 0:01:32]} 33. Bxh5 {[%emt 0:00:15]} f6 {[%emt 0:01:27]} 34. gxf6+ {[%emt 0:03:33]} Nxf6 {[%emt 0:00:06]} 35. Bg5 {[%emt 0:01:11]} Nbd7 {[%emt 0:01:23]} 36. Bf3 {[%emt 0:00:56]} Bxd3 {[%emt 0:00:35]} 37. Nxd7 {[%emt 0:01:12]} Kxd7 {[%emt 0:00:33]} 38. Bxf6 {[%emt 0:00:14]} gxf6 {[%emt 0:00:33]} 39. Kxd3 {[%emt 0:00:05]} Ke6 {[%emt 0:00:17]} 40. h5 {[%emt 0:00:13]} Bf4 {[%emt 0:00:15]} 41. Kc3 {[%emt 0:15:59]} Be3 {[%emt 0:15:42]} 42. Bg4+ {[%emt 0:00:23]} f5 {[%emt 0:00:26]} 43. Bf3 {[%emt 0:00:11]} Kd6 {[%emt 0:00:17]} 44. Kd3 {[%emt 0:00:27]} Bc1 {[%emt 0:00:19]} 45. Be2 {[%emt 0:00:41]} Bg5 {[%emt 0:00:21]} 46. Kc3 {[%emt 0:00:24]} a5 {[%emt 0:00:31]} 47. Ba6 {[%emt 0:00:30]} Ke6 {[%emt 0:01:02]} 48. Bb7 {[%emt 0:00:10]} Bh6 {[%emt 0:00:38]} 49. b4 {[%emt 0:01:56]} axb4+ {[%emt 0:00:05]} 50. Kxb4 {[%emt 0:00:05]} Bg7 {[%emt 0:00:11]} 51. Bc8+ {[%emt 0:01:00]} Kf6 {[%emt 0:00:44]} 52. Kc3 {[%emt 0:00:26]} Bh6 {[%emt 0:00:34]} 53. a4 {[%emt 0:00:24]} Bc1 {[%emt 0:00:21]} 54. Bb7 {[%emt 0:00:24]} Ke6 {[%emt 0:00:11]} 55. Ba6 {[%emt 0:00:26]} Bh6 {[%emt 0:00:33]} 56. Be2 {[%emt 0:00:18]} Bg5 {[%emt 0:00:33]} 57. Bf3 {[%emt 0:00:07]} Be3 {[%emt 0:00:30]} 58. Kb4 {[%emt 0:00:51]} Bxd4 {[%emt 0:00:47]} 59. Kb5 {[%emt 0:00:09]} Kf6 {[%emt 0:00:41]} 60. Bxd5 {[%emt 0:00:16]} Ke5 {[%emt 0:02:07]} 1/2-1/2

[Event "FISCA IM Round Robin 2022"]
[Site "Cap Aurora"]
[Date "2022.06.24"]
[Round "4.5"]
[White "Ciolacu, Alessia-Mihaela"]
[Black "Voiteanu, Gabriel"]
[Result "1-0"]
[ECO "D85"]
[WhiteElo "2198"]
[BlackElo "2189"]
[Annotator "TA"]
[PlyCount "64"]
[EventDate "2022.06.22"]
[EventType "tourn"]
[EventCountry "ROU"]
[SourceTitle "playchess.com"]
[Source "ChessBase"]
[SourceQuality "1"]
[TimeControl "40/5400+30:900+30"]

{[%evp 16,64,18,0,19,10,15,12,14,38,21,15,31,21,23,36,40,55,49,40,42,31,47,4,36,42,79,0,118,107,121,52,132,113,130,122,121,110,120,103,142,144,166,142,404,401,582,582,1193,1178,976]} 1. d4 {[%emt 0:00:04]} Nf6 {[%emt 0:13:54]} 2. c4 {[%emt 0:00:08]} g6 {[%emt 0:00:04]} 3. Nc3 {[%emt 0:00:13]} d5 {[%emt 0:00:10]} 4. cxd5 {[%emt 0:00:06]} Nxd5 {[%emt 0:00:04]} 5. e4 {[%emt 0:00:09]} Nxc3 {[%emt 0:00:04]} 6. bxc3 {[%emt 0:00:04]} Bg7 {[%emt 0:00:09]} 7. Nf3 {[%emt 0:00:17]} c5 {[%emt 0:00:22]} 8. h3 {[%emt 0:00:19]} O-O {[%emt 0:00:15]} 9. Be2 {[%emt 0:00:25]} b5 {[%emt 0:00:31] D85: Exchange Grünfeld: Unusual White 7th moves and lines with 7 Nf3.} 10. Be3 {[%emt 0:04:19]} ({But not} 10. Bxb5 Qa5 11. Qb3 cxd4 $17) 10... Bb7 {[%emt 0:00:55]} 11. Qd3 {[%emt 0:02:37]} b4 {[%emt 0:00:55] The position is equal.} 12. cxb4 {[%emt 0:02:36]} cxb4 {[%emt 0:00:23]} 13. O-O {[%emt 0:00:43]} a5 {[%emt 0:00:23] [#]} 14. Rac1 $146 {[%emt 0:02:29]} ({Predecessor:} 14. Rab1 e6 15. h4 h6 16. Rfd1 Nd7 17. e5 Ba6 18. Qd2 Bxe2 19. Qxe2 Nb6 20. h5 {0-1 (36) Bluebaum,M (2672)-Svidler,P (2723) chess24.com INT 2020}) 14... Nd7 {[%emt 0:02:15]} 15. d5 {[%emt 0:06:47]} Ba6 {[%emt 0:14:07]} 16. Qd2 {[%emt 0:00:34]} Bc3 {[%emt 0:04:00]} 17. Qd1 {[%emt 0:01:28]} Ne5 {[%emt 0:10:28]} 18. Nxe5 {[%emt 0:18:22]} Bxe5 {[%emt 0:01:51]} 19. Rc6 {[%emt 0:00:25]} Bxe2 {[%emt 0:03:03]} 20. Qxe2 {[%emt 0:00:10]} a4 {[%emt 0:17:34]} 21. Qc4 {[%emt 0:08:26] White is more active.} (21. f4 $16 Bg7 22. Qc4) 21... Rb8 {[%emt 0:08:23]} (21... b3 $1 $11 {keeps the balance.}) 22. Rb1 $36 {[%emt 0:06:18][%mdl 2048] White has strong initiative.} b3 {[%emt 0:13:51]} 23. Qxa4 {[%emt 0:02:53]} ({White should play} 23. axb3 $16 Rxb3 24. Rxb3 axb3 25. Qxb3) 23... bxa2 {[%emt 0:02:09]} (23... b2 $14) 24. Qxa2 {[%emt 0:00:15]} Rxb1+ {[%emt 0:00:46]} 25. Qxb1 {[%emt 0:00:02]} Qa5 {[%emt 0:01:41]} 26. Bh6 {[%emt 0:02:45]} Ra8 {[%emt 0:01:32]} 27. g3 {[%emt 0:00:55]} Qd8 {[%emt 0:01:19] [#] White must now prevent ...Ra1.} 28. Kg2 {[%emt 0:01:11]} Qd7 {[%emt 0:00:35]} 29. Qb6 {[%emt 0:04:49]} f5 $2 {[%emt 0:02:21][%mdl 8192] Black cannot hold the game after this.} (29... Bd6 $16 30. Be3 Rb8) 30. Re6 $18 {[%emt 0:03:51]} Bf6 {[%emt 0:00:20]} (30... Bg7 $142 31. Bxg7 Kxg7 32. Qd4+ Kg8) 31. Qb3 {[%emt 0:00:28]} fxe4 {[%emt 0:00:57]} 32. d6 {[%emt 0:00:11] [#] White wants to mate with Rxe7+.} Kh8 {[%emt 0:01:09] Weighted Error Value: White=0.11 (very precise) /Black=0.41} 1-0